[Event "CZE-ch U16 Open 2023"]
[Site "Teplice"]
[Date "2023.03.12"]
[Round "2.4"]
[White "Simunek, Jakub Simon"]
[Black "Pelc, Adam"]
[Result "1/2-1/2"]
[ECO "D04"]
[WhiteElo "1970"]
[BlackElo "1871"]
[Annotator "TA"]
[PlyCount "68"]
[EventDate "2023.03.09"]
[EventType "swiss"]
[EventCountry "CZE"]
[SourceTitle "playchess.com"]
[Source "ChessBase"]
[SourceQuality "1"]
[TimeControl "40/5400+30:1800+30"]

{[%evp 9,68,0,2,-13,15,3,19,0,17,8,33,33,42,40,37,31,42,0,54,58,58,50,67,27,32,27,31,28,41,43,41,39,31,28,28,-27,0,-116,-83,-84,-75,-113,-109,-108,-117,-106,-106,-108,-114,-117,0,0,0,0,0,0,0,0,0,0,0]} 1. d4 {[%emt 0:00:21]} Nf6 {[%emt 0:00:42]} 2. Nf3 {[%emt 0:00:10]} d5 {[%emt 0:00:54]} 3. e3 {[%emt 0:00:11]} c6 {[%emt 0:02:22]} 4. Bd3 {[%emt 0:00:38]} Bg4 {[%emt 0:02:24]} 5. O-O {[%emt 0:00:31]} Nbd7 {[%emt 0:01:08][%cal Oe7e5]} 6. Nbd2 {[%emt 0:07:10] D04: Colle System.} e6 {[%emt 0:06:58]} (6... e5 $5 {[%cal Re5e4]} 7. dxe5 Nxe5 $11 {[%mdl 64] Pin}) 7. c3 {[%emt 0:05:55][%cal Bc2c3,Bc3c4][%mdl 32]} Bd6 {[%emt 0:00:48]} 8. Qc2 {[%emt 0:11:16]} Qc7 {[%emt 0:05:14]} 9. c4 {[%emt 0:05:20] [#]} e5 $146 {[%emt 0:13:05]} ({Predecessor:} 9... O-O 10. c5 Be7 11. b4 a5 12. b5 cxb5 13. Bxb5 Bf5 14. Bd3 Bxd3 15. Qxd3 b6 16. cxb6 Nxb6 {0-1 Mamatkulova,M (2046)-Nakhbayeva,G (2244) Tashkent zt 3.4 (Women) 2011 (8)}) 10. dxe5 {[%emt 0:05:50]} Nxe5 {[%emt 0:04:18]} 11. Nxe5 {[%emt 0:02:15]} Bxe5 {[%emt 0:00:06]} 12. h3 {[%emt 0:14:33]} Be6 {[%emt 0:16:41]} 13. c5 {[%emt 0:18:47] [#] f4 would be deadly.} d4 {[%emt 0:04:43]} (13... g5 $11) 14. exd4 $14 {[%emt 0:08:15]} Bxd4 {[%emt 0:01:59]} 15. Nf3 {[%emt 0:00:08]} Rd8 {[%emt 0:00:38][%cal Od4c5]} 16. Nxd4 {[%emt 0:10:02]} Rxd4 {[%emt 0:00:06]} 17. Be3 {[%emt 0:00:46]} Rd8 {[%emt 0:02:51]} 18. Rfe1 {[%emt 0:03:47]} h6 {[%emt 0:12:16] Prevents Bg5.} 19. Rad1 {[%emt 0:01:53]} O-O {[%emt 0:01:00]} 20. Qc1 {[%emt 0:00:18][%cal Oe3h6]} Rd5 {[%emt 0:05:43]} 21. Bf4 {[%emt 0:00:50]} Qd7 {[%emt 0:00:29]} 22. Qe3 {[%emt 0:00:53]} (22. Bd6 $142) 22... Re8 {[%emt 0:01:52] aiming for ...Bf5.} 23. Be5 {[%emt 0:01:04]} (23. Qf3 $1 $11) 23... Bf5 {[%emt 0:01:45]} 24. Bxf5 {[%emt 0:00:17]} Qxf5 {[%emt 0:00:09]} 25. Rxd5 {[%emt 0:00:28]} Nxd5 {[%emt 0:01:26]} ({Don't play} 25... cxd5 $6 26. f4 $11) 26. Qg3 {[%emt 0:00:38][%csl Ge5][%cal Rg3g7] [#]} f6 $1 {[%emt 0:03:25]} 27. Bc3 {[%emt 0:00:03]} Rxe1+ {[%emt 0:01:28]} 28. Bxe1 $17 {[%emt 0:00:04][%mdl 4096] Endgame KQB-KQN} Qb1 {[%emt 0:01:38][%csl LRa2,LRb2,LRe1]} 29. Qb8+ {[%emt 0:00:30]} Kf7 {[%emt 0:01:37]} (29... Kh7 $17 30. Qe8 Qxb2 31. Qe4+ g6) 30. Qxb7+ $11 {[%emt 0:01:23] The position is equal.} Kg6 {[%emt 0:00:10]} 31. Kf1 {[%emt 0:00:04]} Qd3+ {[%emt 0:01:07]} ({Much less strong is} 31... Qxa2 32. Qxc6 Qc4+ 33. Kg1 $16) 32. Kg1 {[%emt 0:00:03]} Qd1 {[%emt 0:01:16]} (32... Qe4 $5 33. Bd2 $8 Qc2 $11) 33. Kf1 {[%emt 0:00:03]} Qd3+ {[%emt 0:02:26]} 34. Kg1 {[%emt 0:00:04]} Qd1 {Weighted Error Value: White=0.16 (very precise) /Black=0.16 (very precise)} (34... Qe4 $5 35. Bd2 $8 Qc2 $11) 1/2-1/2

[Event "CZE-ch U16 Open 2023"]
[Site "Teplice"]
[Date "2023.03.12"]
[Round "2.5"]
[White "Dolensky, Filip"]
[Black "Tillmann, Stanislav"]
[Result "0-1"]
[ECO "D01"]
[WhiteElo "2108"]
[BlackElo "1907"]
[Annotator "TA"]
[PlyCount "120"]
[EventDate "2023.03.09"]
[EventType "swiss"]
[EventCountry "CZE"]
[SourceTitle "playchess.com"]
[Source "ChessBase"]
[SourceQuality "1"]
[TimeControl "40/5400+30:1800+30"]

{[%evp 9,120,33,67,41,81,35,120,113,115,100,110,56,63,0,75,56,64,69,75,85,120,59,47,-20,89,-59,39,0,3,-144,50,-44,119,104,115,-53,85,83,252,31,214,0,0,-169,-87,-127,-148,-75,-88,-125,-59,-59,-107,-479,-489,-482,-483,-474,-473,-435,-332,-363,-324,-344,-319,-400,-376,-435,-443,-461,-379,-416,-416,-422,-431,-456,-433,-420,-418,-524,-506,-460,-406,-746,-624,-747,-729,-750,-750,-815,-760,-848,-838,-1170,-1150,-1127,-1085,-2067,-1997,-2129,-1200,-2360,-2216,-3345,-2788,-2608,-2537,-29957,-6203,-5197,-3117,-2497,-2436]} 1. d4 {[%emt 0:01:30]} Nf6 {[%emt 0:00:05]} 2. Nc3 {[%emt 0:00:20]} d5 {[%emt 0:01:50]} 3. Bg5 {[%emt 0:00:31]} Ne4 {[%emt 0:01:59]} 4. Nxe4 {[%emt 0:01:27]} dxe4 {[%emt 0:00:02]} 5. c3 {[%emt 0:02:06]} h6 {[%emt 0:10:08]} 6. Bf4 {[%emt 0:03:20] [#] D01: Veresov Opening.} e6 $146 {[%emt 0:05:53]} ({Predecessor:} 6... c6 7. Qc2 Bf5 8. e3 Nd7 9. Nf3 exf3 10. Qxf5 g6 11. Qc2 fxg2 12. Bxg2 Qa5 13. b4 {1-0 Zhang,P (2636)-Laylo,D (2448) Manila PGMA Cup 1st 2006 (7)}) 7. e3 {[%emt 0:02:15]} (7. Qc2 $16) 7... Be7 {[%emt 0:03:16]} (7... b6 $14) 8. Qc2 $16 {[%emt 0:03:06] White is better.} f5 {[%emt 0:01:05]} 9. Bc4 {[%emt 0:02:32]} O-O {[%emt 0:02:09]} 10. Qb3 {[%emt 0:02:27]} (10. f3 $16) 10... Qd7 $1 $14 {[%emt 0:01:34]} 11. O-O-O {[%emt 0:13:56]} (11. d5 $14) 11... c6 {[%emt 0:01:28]} (11... a6 $11 {keeps the balance.}) 12. f3 $16 {[%emt 0:03:06]} b5 {[%emt 0:03:13]} 13. Be2 {[%emt 0:00:45]} a5 {[%emt 0:05:48]} 14. Qc2 {[%emt 0:05:46]} exf3 {[%emt 0:08:01]} 15. gxf3 {[%emt 0:03:23]} (15. Nxf3 $16 {Threatens to win with Rhg1.} Qe8 16. Ne5) 15... b4 {[%emt 0:02:00]} 16. c4 {[%emt 0:04:00]} (16. Kb1 $14) 16... Qa7 {[%emt 0:02:52] [#]} (16... c5 $11) 17. h4 {[%emt 0:07:33]} (17. c5 $1 $16) 17... a4 {[%emt 0:01:50]} ({Better is} 17... c5 $1 $15) 18. Qd2 {[%emt 0:03:09]} (18. c5 $5) 18... Nd7 {[%emt 0:01:20][%cal Oe6e5]} 19. e4 {[%emt 0:12:55]} (19. Nh3 $11) 19... Ba6 $2 {[%emt 0:03:22]} ({Black should try} 19... a3 $17 20. b3 e5 21. dxe5 fxe4) 20. Kb1 {[%emt 0:04:06]} (20. Nh3 $14) 20... Rad8 $2 {[%emt 0:08:55]} (20... b3 $15 {stays ahead.}) 21. Nh3 {[%emt 0:06:21][%cal Of4h6]} Bf6 {[%emt 0:11:28]} 22. Be3 $2 {[%emt 0:01:23]} (22. Qxb4 Bxd4 23. Qd6 (23. Qxa4 fxe4 24. Qxc6 Nc5 $17) (23. Bd6 c5 $17) 23... e5 24. Qxc6 fxe4 25. Bxh6 Qb6 26. Qxb6 Nxb6 $19) (22. Bd6 $16) 22... Qb7 {[%emt 0:01:38]} (22... fxe4 $15 {keeps the upper hand.} 23. fxe4 c5) 23. Rhg1 {[%emt 0:01:02]} Kh7 $2 {[%emt 0:01:31]} (23... b3 $16) 24. h5 $2 {[%emt 0:02:17]} (24. Nf4 $18 Rfe8 25. Nh5) 24... Rfe8 {[%emt 0:03:16] [#]} (24... e5 $14) 25. Rg6 $2 {[%emt 0:03:57]} (25. Bxh6 $1 $18 Nf8 26. Bg5 Rxd4 27. Qe3 Rxd1+ 28. Bxd1 (28. Rxd1 Bxg5 29. Nxg5+ Kg8 $18)) 25... Ne5 $1 $11 {[%emt 0:02:31][%mdl 64] Pin, Double Attack} 26. Qc1 $2 {[%emt 0:02:03]} Nxg6 $19 {[%emt 0:00:59]} 27. hxg6+ {[%emt 0:00:02]} Kxg6 {[%emt 0:05:11]} 28. e5 {[%emt 0:00:18]} Bh4 {[%emt 0:01:00]} 29. Nf4+ {[%emt 0:01:12]} Kh7 (29... Kf7 $17 {[%cal Oc6c5] And now ...c5! would win.} 30. Rg1 b3) 30. Rh1 $15 Bg5 {[%emt 0:01:48] Hoping for ...b3.} 31. Nd3 $2 {[%emt 0:00:44][%mdl 8192]} (31. Nh5 $17 {was the crucial defense.} Bxe3 32. Qxe3) 31... Bxe3 $19 {[%emt 0:00:26][%mdl 64] Deflection} 32. Qxe3 {[%emt 0:00:01]} Bxc4 {[%emt 0:00:54]} 33. Nc5 {[%emt 0:02:59]} Qb5 {[%emt 0:00:12]} 34. Bd1 {[%emt 0:00:31]} a3 {[%emt 0:01:15]} 35. b3 {[%emt 0:00:28]} Bd5 {[%emt 0:00:33]} 36. Rg1 {[%emt 0:00:30]} Qb6 {[%emt 0:02:22]} 37. Bc2 {[%emt 0:00:57]} Qc7 {[%emt 0:01:07]} 38. Qf4 {[%emt 0:01:45]} Qf7 {[%emt 0:02:10]} 39. Bd1 {[%emt 0:00:30]} Rb8 {[%emt 0:01:09]} 40. Be2 {[%emt 0:00:25]} g5 {[%emt 0:01:29][%cal Bg7g5,Bg5g4][%mdl 32]} 41. Qg3 {[%emt 0:31:57]} Rg8 {[%emt 0:32:03]} 42. Qh2 {[%emt 0:00:00]} h5 {[%emt 0:00:00]} 43. Nd7 {[%emt 0:00:00] [#]} Qg6 $1 {[%emt 0:00:00]} 44. f4 {[%emt 0:00:00] [#]} (44. Nf6+ Kh6) 44... g4 $1 {[%emt 0:00:00]} 45. Qh4 {[%emt 0:00:00]} Rbf8 {[%emt 0:00:00][%cal Bb8f8,Bf8f7,Bf7h7][%mdl 32]} 46. Nc5 {[%emt 0:00:00]} (46. Nxf8+ $142 Rxf8 47. Kc2) 46... Rf7 {[%emt 0:00:00]} 47. Bc4 {[%emt 0:00:00]} Bxc4 {[%emt 0:00:00]} 48. bxc4 {[%emt 0:00:00]} Kh8 {[%emt 0:00:00]} 49. Qg3 {[%emt 0:00:27]} Rh7 {[%emt 0:00:00]} 50. Rh1 {[%emt 0:00:30]} Rd8 {[%emt 0:00:00]} 51. Nb3 {[%emt 0:00:42] [#]} h4 $1 {[%emt 0:00:00]} 52. Rxh4 {[%emt 0:00:11]} Kg7 {[%emt 0:00:00] ...Rdh8 would be deadly.} 53. Nc5 {[%emt 0:01:19]} Rdh8 {[%emt 0:00:53]} ({And not} 53... Rxd4 54. Rxh7+ Kxh7 55. Qh4+ Kg7 56. Qe7+ Kh6 57. Qh4+ Qh5 58. Qf6+ Qg6 59. Qh4+ (59. Qh8+ Qh7 $11) 59... Qh5 60. Qf6+ Qg6 61. Qh4+ $11 (61. Qh8+ Qh7 $11)) 54. Rxh7+ {[%emt 0:01:39]} Rxh7 {[%emt 0:00:07][%mdl 4096] Endgame KQR-KQN} 55. d5 {[%emt 0:01:23]} cxd5 {[%emt 0:00:58]} 56. cxd5 {[%emt 0:00:07]} exd5 {[%emt 0:01:36] ( -> ...Rh1+)} 57. Qg1 {[%emt 0:01:55] Dodges Rh1} Qh6 {[%emt 0:01:22][%cal Oh6h1] Strongly threatening ...Qh1!} 58. Qd4 {[%emt 0:00:16]} Qh1+ {[%emt 0:00:10]} 59. Kc2 {[%emt 0:00:07]} Qg2+ {[%emt 0:00:55]} 60. Kb3 {[%emt 0:00:29] [#]} Qb2+ $1 {[%emt 0:00:19] Quite a comeback for Black. Excellently played by Tillmann!   Weighted Error Value: White=0.74/Black=0.45} 0-1

[Event "CZE-ch U16 Open 2023"]
[Site "Teplice"]
[Date "2023.03.12"]
[Round "2.6"]
[White "Svoboda, Daniel"]
[Black "Werner, Hong Quan Dan"]
[Result "0-1"]
[ECO "B22"]
[WhiteElo "1748"]
[BlackElo "2085"]
[Annotator "TA"]
[PlyCount "50"]
[EventDate "2023.03.09"]
[EventType "swiss"]
[EventCountry "CZE"]
[SourceTitle "playchess.com"]
[Source "ChessBase"]
[SourceQuality "1"]
[TimeControl "40/5400+30:1800+30"]

{[%evp 21,50,6,28,31,200,145,228,229,279,231,325,243,321,215,529,285,694,250,226,-125,-125,-127,-124,-123,-135,-325,-320,-475,-468,-29981,-29982]} 1. e4 {[%emt 0:00:05]} c5 {[%emt 0:00:19]} 2. c3 {[%emt 0:00:32]} d5 {[%emt 0:00:46]} 3. exd5 {[%emt 0:00:17]} Qxd5 {[%emt 0:00:12]} 4. d4 {[%emt 0:00:19]} Nc6 {[%emt 0:00:39]} 5. Nf3 {[%emt 0:00:59]} Bg4 {[%emt 0:02:01]} 6. Be2 {[%emt 0:05:04]} e6 {[%emt 0:12:05]} 7. O-O {[%emt 0:10:05]} Nf6 {[%emt 0:03:40]} 8. Be3 {[%emt 0:01:11]} cxd4 {[%emt 0:05:09]} 9. cxd4 {[%emt 0:00:29]} Be7 {[%emt 0:03:18]} 10. h3 {[%emt 0:02:02]} Bh5 {[%emt 0:00:37]} 11. Nc3 {[%emt 0:01:49]} Qa5 {[%emt 0:01:52]} 12. Qb3 {[%emt 0:09:35] B22: Sicilian: 2 c3.} O-O-O {[%emt 0:12:39]} (12... Qb4 $14) 13. Rac1 {[%emt 0:20:15] [#]} Bxf3 $146 {[%emt 0:22:33]} (13... Qb4 $16) ({Predecessor:} 13... Kb8 14. Bf4+ Ka8 15. Qb5 Bd6 16. Qxa5 Nxa5 17. Bxd6 Rxd6 18. Nb5 Rb6 19. Rc7 Nd5 {1-0 Trevis,R (1092)-Jostov,K (1078) SF-2011-0-00127}) 14. Bxf3 $18 {[%emt 0:05:25] White is clearly better.} Nd5 {[%emt 0:00:04]} 15. Nxd5 {[%emt 0:13:56]} exd5 {[%emt 0:00:06]} (15... Rxd5 $142 16. Rc3 (16. Bxd5 Qxd5 17. Qd1 Rd8 $18) 16... Rhd8) 16. Bf4 {[%emt 0:06:05] [#] Threatening mate with Bg4+. A strong pair of Bishops.} g6 {[%emt 0:02:56]} 17. Rfe1 {[%emt 0:11:08] White threatens Rxc6+ and mate.} Bb4 $2 {[%emt 0:02:12]} (17... Bd6 {is a better chance.}) 18. Re2 {[%emt 0:06:11] Threatens to win with Rec2.} Rhf8 $2 {[%emt 0:16:36]} (18... Bd6) 19. a3 $2 {[%emt 0:00:52]} (19. Rec2) 19... Bd6 {[%emt 0:00:09][%cal Bb4d6,Bd6f4,Bf4c1][%mdl 32]} 20. Bxd5 $2 {[%emt 0:00:37]} (20. Qxd5 $2 {too greedy.} Qxd5 21. Bxd5 Bxf4 $19) (20. Bh6 $18 {[%cal Of3d5]} Rfe8 21. Rxe8 (21. Qxd5 $2 Qxd5 22. Bxd5 Rxe2 $19) 21... Rxe8 22. Be3 (22. Qxd5 $2 Re1+ {[%mdl 64] Back Rank} 23. Rxe1 Qxe1#)) 20... Bxf4 $17 {[%emt 0:02:45]} 21. Bxc6 {[%emt 0:00:26][%csl Gc6][%cal Rb3b7]} ({But not} 21. Re7 $2 Qb6 22. Rc3 Qxb3 23. Bxb3 Rxd4 $19) 21... Qb6 {[%emt 0:03:26]} 22. Bxb7+ {[%emt 0:03:13][%mdl 64] [#] Decoy} Kb8 $1 {[%emt 0:00:03] Really sharp!} 23. Qf3 {[%emt 0:00:52]} (23. Rc3 $17 Qxb7 24. Re7 {[%mdl 64] Pin} Qxb3 25. Rxb3+ Ka8 26. Rbb7) 23... Bxc1 $19 {[%emt 0:00:10]} ({Resist} 23... Rxd4 24. Rce1 Rfd8 25. Re8 Qxb7 26. Rxd8+ {[%mdl 64] Deflection} Rxd8 27. Qxf4+ Qc7 28. Qf6 $18) 24. Re7 {[%emt 0:00:05]} (24. Bc6 {was necessary.} Rxd4 25. Re7) 24... Qxd4 {[%emt 0:00:52]} 25. Qg3+ {[%emt 0:00:56]} (25. Bc6 $19 Qd1+ 26. Qxd1 Rxd1+ 27. Kh2) 25... Bf4 {[%emt 0:00:07] Weighted Error Value: White=1.95/Black=0.82} 0-1

[Event "CZE-ch U16 Open 2023"]
[Site "Teplice"]
[Date "2023.03.12"]
[Round "2.7"]
[White "Seidl, Jan"]
[Black "Tesar, Jakub"]
[Result "1-0"]
[ECO "C02"]
[WhiteElo "2025"]
[BlackElo "1960"]
[Annotator "TA"]
[PlyCount "91"]
[EventDate "2023.03.09"]
[EventType "swiss"]
[EventCountry "CZE"]
[SourceTitle "playchess.com"]
[Source "ChessBase"]
[SourceQuality "1"]
[TimeControl "40/5400+30:1800+30"]

{[%evp 11,91,0,0,-31,-21,-38,-16,-54,-18,-64,-36,-39,0,7,0,0,17,0,16,21,6,14,4,-23,-11,-13,81,75,77,89,86,0,0,0,18,7,37,60,153,141,140,150,310,68,66,68,66,66,241,37,242,238,255,266,263,241,258,268,256,258,275,259,329,343,332,327,346,341,401,401,385,282,387,371,368,389,384,352,801,801,801,801]} 1. e4 {[%emt 0:00:20]} e6 {[%emt 0:00:15]} 2. d4 {[%emt 0:00:17]} d5 {[%emt 0:00:11]} 3. e5 {[%emt 0:00:22]} c5 {[%emt 0:00:11]} 4. c3 {[%emt 0:00:05]} Nc6 {[%emt 0:00:04]} 5. Nf3 {[%emt 0:00:05]} Qb6 {[%emt 0:00:10]} 6. Bd3 {[%emt 0:00:15]} cxd4 {[%emt 0:00:20]} 7. O-O $1 {[%emt 0:00:08][%mdl 4] is now more promising than 7.cxd4. C02: French: Advance Variation.} Bd7 {[%emt 0:00:06]} 8. Re1 {[%emt 0:00:06]} Nge7 {[%emt 0:00:11]} 9. h4 {[%emt 0:00:07] The position is equal.} a6 {[%emt 0:00:07]} 10. h5 {[%emt 0:01:13]} (10. Nbd2 $11 {is superior.}) 10... g6 {[%emt 0:00:14]} 11. Nbd2 {[%emt 0:03:24]} dxc3 {[%emt 0:04:39]} (11... gxh5 $15 {feels stronger.} 12. Nb3 dxc3 13. bxc3 Ng6) 12. bxc3 $11 {[%emt 0:00:50]} gxh5 {[%emt 0:00:30] [#]} 13. c4 $146 {[%emt 0:03:32]} ({Predecessor:} 13. Ng5 Ng6 14. Qxh5 Ncxe5 15. Bxg6 fxg6 16. Qh3 Bg7 17. Rb1 Qc6 18. Qg3 h6 19. Nh3 {1-0 Clarke,B (2430)-Keetman,M (2133) BCF-chT1 S4 (4NCL) online Final 2021 (1.11)}) 13... Ng6 {[%emt 0:16:47] And now ...Bc5 would win.} 14. cxd5 {[%emt 0:17:08]} exd5 {[%emt 0:00:08]} 15. Rb1 {[%emt 0:08:17]} Qc7 {[%emt 0:01:56]} 16. Ng5 {[%emt 0:07:51]} Bg4 {[%emt 0:24:18]} ({Not} 16... Ncxe5 17. Ndf3 O-O-O 18. Rxe5 Nxe5 19. Nxe5 Qxe5 20. Nxf7 $18) 17. Qa4 {[%emt 0:02:26]} Be7 {[%emt 0:03:07]} 18. Ndf3 {[%emt 0:05:34]} Nf8 {[%emt 0:11:05]} (18... Rg8 $11 19. Ba3 (19. Nxh7 $2 {perishes.} Bxf3 20. Nf6+ Bxf6 $19) 19... h6 20. Bxe7 Qxe7) 19. Nd4 $16 {[%emt 0:06:11] White has more active pieces.} Qa5 {[%emt 0:06:00]} 20. Qxa5 {[%emt 0:01:39]} Nxa5 {[%emt 0:00:05] [#]} 21. f3 {[%emt 0:00:54]} ({Better is} 21. e6 $1 $16 {[%cal Re6f7]} Nxe6 22. Ngxe6 fxe6 23. f3) 21... Be6 {[%emt 0:03:56]} 22. Nf5 {[%emt 0:00:19] aiming for Nxe7.} Bxf5 {[%emt 0:06:40]} 23. Bxf5 {[%emt 0:00:40]} b5 {[%emt 0:02:13]} (23... h6 $5 24. Nh3 $8 Ne6 $11) 24. e6 {[%emt 0:00:35]} Bxg5 {[%emt 0:00:58]} (24... f6 $14 25. Nf7 Rg8) 25. exf7+ {[%emt 0:00:08]} Kxf7 {[%emt 0:00:11]} 26. Bxg5 {[%emt 0:00:03] [#] Intending Re7+ and mate.} Ng6 {[%emt 0:04:34] Wards off Re7+} (26... Ra7 $16) 27. Rbc1 $2 {[%emt 0:01:47]} (27. Be6+ $18 Kg7 28. Bd2) 27... Nc4 $1 $14 {[%emt 0:02:58]} 28. Be6+ {[%emt 0:00:09] This pair of bishops is nice.} Kg7 {[%emt 0:00:08]} 29. Bxd5 {[%emt 0:00:05]} Rac8 {[%emt 0:06:21] Black is on the road to losing.} (29... Rae8 $14) 30. Bb7 $2 {[%emt 0:03:38]} (30. Re6 $18) 30... Rce8 $2 {[%emt 0:00:32]} ({Black should try} 30... Rb8 $1 $14 31. Bd5 (31. Bxa6 Rb6 $14) 31... Rhe8) 31. Bxa6 $18 {[%emt 0:03:01] Strongly threatening Red1.} h6 {[%emt 0:03:49] Hoping for ...Rxe1+.} 32. Rxe8 {[%emt 0:00:20]} ({Less strong is} 32. Bxb5 Rxe1+ 33. Rxe1 hxg5 $16) 32... Rxe8 {[%emt 0:00:08]} 33. Bxb5 {[%emt 0:00:09]} Ra8 {[%emt 0:01:02]} 34. Bxh6+ {[%emt 0:00:34]} Kxh6 {[%emt 0:00:09]} 35. Bxc4 {[%emt 0:00:03][%mdl 4096] Endgame KRB-KRN} Ne5 {[%emt 0:02:28]} 36. Bb3 {[%emt 0:00:41]} h4 {[%emt 0:00:13]} 37. Kh2 {[%emt 0:01:21]} Kg5 {[%emt 0:01:06]} 38. Rc5 {[%emt 0:01:04]} Kf4 {[%emt 0:00:22]} 39. Kh3 {[%emt 0:00:41]} Rb8 {[%emt 0:00:00]} 40. Rd5 {[%emt 0:00:00]} (40. Kxh4 $2 Rh8#) 40... Rb4 {[%emt 0:00:00]} 41. Rd8 {[%emt 0:01:41]} Ng6 {[%emt 0:07:39]} 42. Rg8 {[%emt 0:00:34]} Rb6 {[%emt 0:01:05]} 43. Bc2 {[%emt 0:01:17]} Ne5 {[%emt 0:01:05]} 44. Rh8 {[%emt 0:00:49]} (44. Kxh4 $2 Rh6#) 44... Rb2 $2 {[%emt 0:01:31]} (44... Ke3 45. Rxh4 Kd2) 45. Rxh4+ {[%emt 0:00:06]} Kg5 {[%emt 0:00:23]} 46. f4+ {[%emt 0:00:04] Weighted Error Value: White=0.27 (precise) /Black=0.40} 1-0

[Event "CZE-ch U16 Open 2023"]
[Site "Teplice"]
[Date "2023.03.12"]
[Round "2.8"]
[White "Davidek, Zdenek"]
[Black "Hladky, Tadeas"]
[Result "0-1"]
[ECO "E15"]
[WhiteElo "1957"]
[BlackElo "1973"]
[Annotator "TA"]
[PlyCount "94"]
[EventDate "2023.03.09"]
[EventType "swiss"]
[EventCountry "CZE"]
[SourceTitle "playchess.com"]
[Source "ChessBase"]
[SourceQuality "1"]
[TimeControl "40/5400+30:1800+30"]

{[%evp 19,94,11,9,-12,0,0,-2,-20,-2,-21,-12,-12,-8,-56,-42,-60,-65,-56,-53,-80,-14,-120,-127,-152,-152,-158,-135,-129,-112,-111,-44,-192,-204,-169,-21,-93,-23,-41,25,24,76,-18,-35,-114,-100,-89,-84,-178,-136,-136,-136,-136,-136,-136,-136,-125,-137,-303,-136,-276,-264,-258,-258,-749,-639,-993,-920,-29963,-29952,-29970,-29971,-29970,-29972,-29971,-29972,-29972,-29971]} 1. d4 {[%emt 0:00:06]} Nf6 {[%emt 0:00:09]} 2. Nf3 {[%emt 0:00:06]} e6 {[%emt 0:00:05]} 3. c4 {[%emt 0:00:20]} b6 {[%emt 0:00:14]} 4. g3 {[%emt 0:00:10]} Ba6 {[%emt 0:00:05]} 5. b3 {[%emt 0:09:41]} Bb4+ {[%emt 0:00:19]} 6. Bd2 {[%emt 0:00:25]} Be7 {[%emt 0:00:08]} 7. Bg2 {[%emt 0:00:10]} c6 {[%emt 0:00:35]} 8. O-O {[%emt 0:03:42]} d5 {[%emt 0:00:12]} 9. Qc2 {[%emt 0:06:00]} O-O {[%emt 0:01:14]} 10. Rd1 {[%emt 0:05:43]} Nbd7 {[%emt 0:01:05]} 11. Bg5 {[%emt 0:17:25] E15: Queen's Indian: 4 g3 sidelines, 4 g3 Ba6 and 4 g3 Bb7 early deviations.} Rc8 {[%emt 0:06:48]} 12. Nc3 {[%emt 0:06:36]} h6 {[%emt 0:17:31]} 13. Bxf6 {[%emt 0:01:42] The position is equal.} Bxf6 {[%emt 0:00:35]} 14. e4 {[%emt 0:03:30]} dxc4 {[%emt 0:04:45]} 15. e5 $1 {[%emt 0:03:55]} Be7 {[%emt 0:00:29] [#]} 16. Ne4 $146 {[%emt 0:01:14]} (16. Nd2 $11) ({Predecessor:} 16. Qe2 b5 17. bxc4 bxc4 18. Ne4 Nb6 19. Bf1 Qd5 20. a4 Qa5 21. h4 Rfd8 22. Ne1 {0-1 Ciolacu,A (2154)-Koellner,R (2407) Dortmund NRW Cup U20 2021 (4)}) 16... cxb3 {[%emt 0:08:48]} 17. axb3 {[%emt 0:00:06]} Nb8 {[%emt 0:00:06]} 18. Ra4 {[%emt 0:08:37]} Rc7 {[%emt 0:02:00]} 19. Rda1 {[%emt 0:00:56]} Qc8 {[%emt 0:00:36]} (19... Bb5 $17 20. Rxa7 Rxa7 21. Rxa7 c5) 20. Nc3 {[%emt 0:06:58]} (20. Qd2 $11) 20... Rd8 $17 {[%emt 0:06:50]} 21. Qa2 {[%emt 0:01:51][%cal Ra4a6]} c5 {[%emt 0:02:56]} 22. d5 {[%emt 0:06:26] [#] Strongly threatening d6.} exd5 {[%emt 0:00:21] Threatens to win with ...d4.} 23. Rxa6 {[%emt 0:00:08]} Nxa6 {[%emt 0:00:08]} (23... Qxa6 24. Qxa6 Nxa6 25. Nb5 $11) 24. Qxa6 {[%emt 0:00:04]} c4 {[%emt 0:02:51]} (24... Qxa6 $17 25. Rxa6 c4) 25. bxc4 {[%emt 0:02:11]} (25. Qxc8 $1 $15 Rcxc8 26. bxc4 dxc4 27. Bh3 (27. Rxa7 Bb4 $17)) 25... Qxa6 $19 {[%emt 0:00:49]} 26. Rxa6 {[%emt 0:00:12]} Rxc4 {[%emt 0:00:51]} (26... dxc4 $19 {Hoping for ...Bb4.} 27. Ra1 Bb4) 27. Rxa7 {[%emt 0:01:23]} (27. Nb5 $11) 27... Bc5 {[%emt 0:09:21]} (27... Rxc3 $17 28. Rxe7 d4) 28. Na4 {[%emt 0:02:31]} Rc2 {[%emt 0:07:56]} ({Better is} 28... Rc1+ $15 29. Bf1 d4) 29. Nxc5 $11 {[%emt 0:00:26]} bxc5 {[%emt 0:00:05]} (29... Rc1+ $1 $11 {keeps the balance.} 30. Bf1 bxc5) 30. Ra1 {[%emt 0:00:16]} ({White should try} 30. Bh3 $16) 30... d4 {[%emt 0:01:31][%cal Bd5d4,Bd4d3][%mdl 1056] White must now prevent ...d3. Black has compensation.} 31. Rd1 {[%emt 0:01:43]} (31. e6 $1 $15) 31... d3 $17 {[%emt 0:04:54]} 32. Ne1 {[%emt 0:01:09][%csl LRc2,LRd3] Repels c4} Rc3 {[%emt 0:00:21]} 33. Kf1 {[%emt 0:01:17]} (33. Be4 $17 {is a better defense.}) 33... c4 {[%emt 0:01:12] [#] ...d2 is the strong threat.} 34. Be4 {[%emt 0:01:20]} Rd4 {[%emt 0:01:38]} 35. f3 {[%emt 0:04:19]} Ra3 {[%emt 0:08:30]} 36. Kf2 {[%emt 0:02:13]} Ra2+ {[%emt 0:01:00]} 37. Ke3 {[%emt 0:00:45]} Rd8 {[%emt 0:00:04] Black is much more active.} 38. h4 $2 {[%emt 0:02:44]} (38. f4 $17 {keeps fighting.}) 38... Re2+ $19 {[%emt 0:00:51]} 39. Kf4 {[%emt 0:00:05]} Rd4 {[%emt 0:02:49]} 40. h5 {[%emt 0:01:27]} Kf8 {[%emt 0:04:20]} 41. Nxd3 $2 {[%emt 0:11:56]} (41. e6) 41... cxd3 {[%emt 0:00:15][%cal Bc4d3,Bd3d2][%mdl 4128] Endgame KRR-KRB} 42. e6 {[%emt 0:01:57]} fxe6 {[%emt 0:01:32] ( -> ...d2)} 43. Ke5 {[%emt 0:00:16]} Rd8 {[%emt 0:00:11] Black mates.} 44. Kxe6 {[%emt 0:00:18]} d2 {[%emt 0:00:30]} 45. Kf5 {[%emt 0:00:23]} Re1 {[%emt 0:00:41]} 46. Bc2 {[%emt 0:00:04]} Rxd1 {[%emt 0:00:17]} 47. Bxd1 {[%emt 0:00:04]} Re8 {[%emt 0:00:04] Weighted Error Value: White=0.76/Black=0.23 (precise)} 0-1